bitfinex-derivatives/quotes_BNBF0:USTF0_20260221
["timestamp","ask_amount","ask_price","bid_price","bid_amount"]
[1771717140598,0.95915262,626.62,625.96,2.3913379]
[1771717140900,0.95915262,626.61,625.96,2.3913379]
[1771717141092,0.95915262,626.6,625.96,2.3913379]
[1771717141293,0.95915262,626.59,625.96,2.3913379]
[1771717141495,0.95915262,626.58,625.96,2.3913379]
[1771717141700,0.95915262,626.57,625.96,2.3913379]
[1771717141900,0.95915262,626.56,625.96,2.3913379]
[1771717142102,0.95915262,626.55,625.96,2.3913379]
[1771717142401,0.95915262,626.54,625.95,2.3913379]
[1771717142596,0.95915262,626.53,625.95,2.3913379]
[1771717142801,1.19719315,626.73,625.95,2.3913379]
[1771717142998,0.95883125,626.72,625.95,2.3913379]
[1771717143297,0.95883125,626.71,625.95,2.3913379]
[1771717143497,0.95883125,626.7,625.95,2.3913379]
[1771717143702,0.95883125,626.69,625.95,2.3913379]
[1771717144003,1.19719315,626.73,625.95,2.3913379]
[1771717144004,0.95883125,626.68,625.95,2.3913379]
[1771717144302,0.95883125,626.67,625.95,2.3913379]
[1771717144601,0.95883125,626.66,625.95,2.3913379]
[1771717144799,0.95883125,626.65,625.95,2.3913379]
[1771717145100,0.95883125,626.64,625.95,2.3913379]
[1771717145301,0.95883125,626.63,625.95,2.3913379]
[1771717145502,0.95883125,626.62,625.95,2.3913379]
[1771717145699,0.95883125,626.61,625.95,2.3913379]
[1771717145901,0.95883125,626.6,625.95,2.3913379]
[1771717146099,0.95883125,626.59,625.95,2.3913379]
[1771717146302,0.95883125,626.58,625.95,2.3913379]
[1771717146603,0.95883125,626.57,625.95,2.3913379]
[1771717146898,0.95883125,626.56,625.95,2.3913379]
[1771717147102,0.95883125,626.55,625.95,2.3913379]
[1771717147302,0.95883125,626.54,625.94,2.3913379]
[1771717147500,1.19719315,626.74,625.94,2.3913379]
[1771717147800,0.958494,626.73,625.94,2.3913379]
[1771717148005,0.958494,626.72,625.94,2.3913379]
[1771717148205,0.958494,626.71,625.94,2.3913379]
[1771717148401,0.958494,626.7,625.94,2.3913379]
[1771717148604,0.958494,626.69,625.94,2.3913379]
[1771717148807,0.958494,626.68,625.94,2.3913379]
[1771717149103,0.958494,626.67,625.94,2.3913379]
[1771717149303,0.958494,626.66,625.94,2.3913379]
[1771717149503,0.958494,626.65,625.94,2.3913379]
[1771717149707,0.958494,626.64,625.94,2.3913379]
[1771717149905,0.958494,626.63,625.94,2.3913379]
[1771717150205,0.958494,626.62,625.94,2.3913379]
[1771717150409,0.958494,626.61,625.94,2.3913379]
[1771717150705,0.958494,626.6,625.94,2.3913379]
[1771717150907,0.958494,626.59,625.94,2.3913379]
[1771717151107,0.958494,626.58,625.94,2.3913379]
[1771717151305,0.958494,626.57,625.94,2.3913379]
[1771717151504,0.958494,626.56,625.94,2.3913379]
[1771717151707,0.958494,626.55,625.94,2.3913379]
[1771717152007,1.19719315,626.75,625.94,2.3913379]
[1771717152203,0.95831835,626.74,625.94,2.3913379]
[1771717152403,0.95831835,626.73,625.94,2.3913379]
[1771717152705,0.95831835,626.72,625.94,2.3913379]
[1771717152909,0.95831835,626.71,625.94,2.3913379]
[1771717153110,0.95831835,626.7,625.94,2.3913379]
[1771717153308,0.95831835,626.69,625.94,2.3913379]
[1771717153507,0.95831835,626.68,625.94,2.3913379]
[1771717153810,0.95831835,626.67,625.94,2.3913379]
[1771717154111,0.95831835,626.66,625.94,2.3913379]
[1771717154308,0.95831835,626.65,625.94,2.3913379]
[1771717154507,0.95831835,626.64,625.94,2.3913379]
[1771717154708,0.95831835,626.63,625.94,2.3913379]
[1771717155008,0.95831835,626.62,625.94,2.3913379]
[1771717155207,0.95831835,626.61,625.94,2.3913379]
[1771717155412,0.95831835,626.6,625.94,2.3913379]
[1771717155609,0.95831835,626.59,625.94,2.3913379]
[1771717155809,0.95831835,626.58,625.94,2.3913379]
[1771717156009,0.95831835,626.57,625.94,2.3913379]
[1771717156212,0.95831835,626.56,625.94,2.3913379]
[1771717156410,0.95831835,626.55,625.94,2.3913379]
[1771717156612,1.19719315,626.75,625.94,2.3913379]
[1771717156913,0.95816556,626.74,625.94,2.3913379]
[1771717157114,0.95816556,626.73,625.94,2.3913379]
[1771717157314,0.95816556,626.72,625.94,2.3913379]
[1771717157510,0.95816556,626.71,625.94,2.3913379]
[1771717157710,0.95816556,626.7,625.94,2.3913379]
[1771717157910,0.95816556,626.69,625.94,2.3913379]
[1771717158216,0.95816556,626.68,625.93,2.3913379]
[1771717158417,0.95816556,626.67,625.93,2.3913379]
[1771717158716,0.95816556,626.66,625.93,2.3913379]
[1771717158914,0.95816556,626.65,625.93,2.3913379]
[1771717159117,0.95816556,626.64,625.96,2.3913379]
[1771717159318,0.95816556,626.63,625.96,2.3913379]
[1771717159613,0.95816556,626.62,625.96,2.3913379]
[1771717159818,0.95816556,626.61,625.96,2.3913379]
[1771717160017,0.95816556,626.6,625.96,2.3913379]
[1771717160214,0.95816556,626.59,625.96,2.3913379]
[1771717160414,0.95816556,626.58,625.96,2.3913379]
[1771717160615,1.19719315,626.78,625.96,2.3913379]
[1771717160820,0.95795504,626.77,625.96,2.3913379]
[1771717161116,0.95795504,626.76,625.96,2.3913379]
[1771717161314,0.95795504,626.75,625.96,2.3913379]
[1771717161518,0.95795504,626.74,625.96,2.3913379]
[1771717161718,0.95795504,626.73,625.96,2.3913379]
[1771717161918,1.19719315,626.78,625.96,2.3913379]
[1771717161919,0.95795504,626.72,625.96,2.3913379]
[1771717162116,0.95795504,626.71,625.96,2.3913379]
[1771717162315,0.95795504,626.7,625.96,2.3913379]
[1771717162620,0.95795504,626.69,625.96,2.3913379]
[1771717162819,0.95795504,626.68,625.96,2.3913379]
[1771717163118,0.95795504,626.67,625.95,2.3913379]
[1771717163316,0.95795504,626.66,625.95,2.3913379]
[1771717163617,0.95795504,626.65,625.95,2.3913379]
[1771717163916,0.95795504,626.64,625.95,2.3913379]
[1771717164114,0.95795504,626.63,625.95,2.3913379]
[1771717164315,0.95795504,626.62,625.95,2.3913379]
[1771717164520,0.95795504,626.61,625.95,2.3913379]
[1771717164820,0.95795504,626.6,625.95,2.3913379]
[1771717165116,0.95795504,626.59,625.95,2.3913379]
[1771717165321,1.19719315,626.79,625.95,2.3913379]
[1771717165621,0.95774523,626.78,625.95,2.3913379]
[1771717165817,0.95774523,626.77,625.95,2.3913379]
[1771717166116,0.95774523,626.76,625.95,2.3913379]
[1771717166417,0.95774523,626.75,625.95,2.3913379]
[1771717166719,0.95774523,626.74,625.95,2.3913379]
[1771717166920,0.95774523,626.73,625.95,2.3913379]
[1771717167120,0.95774523,626.72,625.95,2.3913379]
[1771717167420,0.95774523,626.71,625.95,2.3913379]
[1771717167617,0.95774523,626.7,625.95,2.3913379]
[1771717167821,0.95774523,626.69,625.95,2.3913379]
[1771717168022,0.95774523,626.68,625.95,2.3913379]
[1771717168218,0.95774523,626.67,625.95,2.3913379]
[1771717168519,0.95774523,626.66,625.96,1.428]
[1771717168723,0.95774523,626.65,625.96,1.428]
[1771717168921,0.95774523,626.64,625.96,1.428]
[1771717169120,0.95774523,626.63,625.96,1.428]
[1771717169322,0.95774523,626.62,625.96,1.428]
[1771717169521,0.95774523,626.61,625.96,3.8193379]
[1771717169725,0.95774523,626.6,625.96,3.8193379]
[1771717169924,0.95774523,626.59,625.96,3.8193379]
[1771717170120,1.19719315,626.8,625.96,3.8193379]
[1771717170322,2.14997742,626.79,625.96,3.8193379]
[1771717170521,0.95278427,626.78,625.96,3.8193379]
[1771717170821,0.95278427,626.77,625.96,3.8193379]
[1771717171024,0.95278427,626.76,625.96,3.8193379]
[1771717171219,0.95278427,626.75,625.96,3.8193379]
[1771717171423,0.95278427,626.74,625.96,3.8193379]
[1771717171620,0.95278427,626.73,625.96,3.8193379]
[1771717171823,0.95278427,626.72,625.96,3.8193379]
[1771717172022,0.95278427,626.71,625.96,3.8193379]
[1771717172224,0.95278427,626.7,625.96,3.8193379]
[1771717172422,0.95278427,626.69,625.96,3.8193379]
[1771717172623,0.95278427,626.68,625.96,3.8193379]
[1771717172823,0.95278427,626.67,625.96,3.8193379]
[1771717173025,0.95278427,626.66,625.96,3.8193379]
[1771717173226,1.19719315,626.79,625.96,3.8193379]
[1771717173227,0.95278427,626.65,625.96,3.8193379]
[1771717173425,0.95278427,626.64,625.96,3.8193379]
[1771717173624,0.95278427,626.63,625.96,3.8193379]
[1771717173823,0.95278427,626.62,625.96,3.8193379]
[1771717174026,0.95278427,626.61,625.96,3.8193379]
[1771717174225,0.95278427,626.6,625.96,3.8193379]
[1771717174526,0.95278427,626.59,625.96,3.8193379]
[1771717174724,1.19719315,626.79,625.96,3.8193379]
[1771717174925,0.95293406,626.78,625.96,3.8193379]
[1771717175128,0.95293406,626.77,625.96,3.8193379]
[1771717175428,0.95293406,626.76,625.97,2.3913379]
[1771717175628,0.95293406,626.75,625.97,2.3913379]
[1771717175823,0.95293406,626.74,625.97,2.3913379]
[1771717176128,0.95293406,626.73,625.97,2.3913379]
[1771717176328,0.95293406,626.72,625.97,2.3913379]
[1771717176527,0.95293406,626.71,625.97,2.3913379]
[1771717176729,0.95293406,626.7,625.97,2.3913379]
[1771717176929,0.95293406,626.69,625.97,2.3913379]
[1771717177129,0.95293406,626.68,625.97,2.3913379]
[1771717177330,0.95293406,626.67,625.97,2.3913379]
[1771717177531,0.95293406,626.66,625.97,2.3913379]
[1771717177731,0.95293406,626.65,625.97,2.3913379]
[1771717177930,0.95293406,626.64,625.97,2.3913379]
[1771717178132,0.95293406,626.63,625.97,2.3913379]
[1771717178334,0.95293406,626.62,625.97,2.3913379]
[1771717178535,0.95293406,626.61,625.97,2.3913379]
[1771717178833,0.95293406,626.6,625.97,2.3913379]
[1771717179034,0.95293406,626.59,625.97,2.3913379]
[1771717179334,0.95293406,626.58,625.97,2.3913379]
[1771717179532,1.19719315,626.78,625.97,2.3913379]
[1771717179739,0.95327273,626.77,625.97,2.3913379]
[1771717180034,0.95327273,626.76,625.97,2.3913379]
[1771717180238,0.95327273,626.75,625.98,2.3913379]
[1771717180435,0.95327273,626.74,625.98,2.3913379]
[1771717180734,0.95327273,626.73,625.98,2.3913379]
[1771717180933,0.95327273,626.72,625.98,2.3913379]
[1771717181138,0.95327273,626.71,625.98,2.3913379]
[1771717181339,0.95327273,626.7,625.98,2.3913379]
[1771717181535,0.95327273,626.69,625.98,2.3913379]
[1771717181735,0.95327273,626.68,625.98,2.3913379]
[1771717181940,0.95327273,626.67,625.98,2.3913379]
[1771717182136,0.95327273,626.66,625.98,2.3913379]
[1771717182340,0.95327273,626.65,625.98,2.3913379]
[1771717182536,0.95327273,626.64,625.98,2.3913379]
[1771717182839,0.95327273,626.63,625.98,2.3913379]
[1771717183036,0.95327273,626.62,625.98,2.3913379]
[1771717183239,0.95327273,626.61,625.98,2.3913379]
[1771717183441,0.95327273,626.6,625.99,2.3913379]
[1771717183640,0.95327273,626.59,625.99,2.3913379]
[1771717183841,0.95327273,626.58,625.99,2.3913379]
[1771717184147,0.95327273,626.57,625.99,2.3913379]
[1771717184337,0.95327273,626.56,625.99,2.3913379]
[1771717184542,1.19719315,626.76,625.99,2.3913379]
[1771717184738,0.95391775,626.75,625.99,2.3913379]
[1771717184937,0.95391775,626.74,625.99,2.3913379]
[1771717185140,0.95391775,626.73,625.99,2.3913379]
[1771717185343,0.95391775,626.72,625.99,2.3913379]
[1771717185544,0.95391775,626.71,625.99,2.3913379]
[1771717185744,0.95391775,626.7,625.99,2.3913379]
[1771717185945,0.95391775,626.69,625.99,2.3913379]
[1771717186145,0.95391775,626.68,625.99,2.3913379]
[1771717186446,0.95391775,626.67,625.99,2.3913379]
[1771717186745,0.95391775,626.66,625.99,2.3913379]
[1771717186944,0.95391775,626.65,625.99,2.3913379]
[1771717187242,0.95391775,626.64,625.99,2.3913379]
[1771717187446,0.95391775,626.63,625.99,2.3913379]
[1771717187641,0.95391775,626.62,625.99,2.3913379]
[1771717187940,0.95391775,626.61,625.99,2.3913379]
[1771717188141,0.95391775,626.6,625.99,2.3913379]
[1771717188345,0.95391775,626.59,625.99,2.3913379]
[1771717188541,0.95391775,626.58,625.99,2.3913379]
[1771717188745,0.95391775,626.57,625.99,2.3913379]
[1771717189041,0.95391775,626.56,625.99,2.3913379]
[1771717189245,1.19719315,626.76,625.99,2.3913379]
[1771717189445,0.9539551,626.75,625.99,2.3913379]
[1771717189641,0.9539551,626.74,625.99,2.3913379]
[1771717189845,0.9539551,626.73,625.99,2.3913379]
[1771717190046,0.9539551,626.72,625.99,2.3913379]
[1771717190245,0.9539551,626.71,625.99,2.3913379]
[1771717190447,0.9539551,626.7,625.99,2.3913379]
[1771717190646,0.9539551,626.69,625.99,2.3913379]
[1771717190846,0.9539551,626.68,625.99,2.3913379]
[1771717191046,0.9539551,626.67,625.99,2.3913379]
[1771717191247,0.9539551,626.66,625.99,2.3913379]
[1771717191547,0.9539551,626.65,625.99,2.3913379]
[1771717191847,0.9539551,626.64,625.99,2.3913379]
[1771717192043,0.9539551,626.63,625.99,2.3913379]
[1771717192244,0.9539551,626.62,625.99,2.3913379]
[1771717192448,0.9539551,626.61,625.99,2.3913379]
[1771717192645,0.9539551,626.6,625.99,2.3913379]
[1771717192844,0.9539551,626.59,625.99,2.3913379]
[1771717193047,0.9539551,626.58,625.99,2.3913379]
[1771717193246,0.9539551,626.57,625.99,2.3913379]
[1771717193445,0.9539551,626.56,625.99,2.3913379]
[1771717193648,1.19719315,626.76,625.99,2.3913379]
[1771717193846,0.95391966,626.75,626.08,2.3913379]
[1771717194048,0.95391966,626.74,626.08,2.3913379]
[1771717194249,0.95391966,626.73,626.08,2.3913379]
[1771717194448,0.95391966,626.72,626.08,2.3913379]
[1771717194749,0.95391966,626.71,626.08,2.3913379]
[1771717194952,0.95391966,626.7,626.08,2.3913379]
[1771717195152,0.95391966,626.69,626.07,2.3913379]
[1771717195454,0.95391966,626.68,626.07,2.3913379]
[1771717195750,0.95391966,626.67,626.07,2.3913379]
[1771717195951,1.19719315,626.87,626.07,2.3913379]
[1771717196155,0.95334273,626.86,626.07,2.3913379]
[1771717196454,1.19719315,626.87,626.07,2.3913379]
[1771717196455,0.95334273,626.85,626.07,2.3913379]
[1771717196656,0.95334273,626.84,626.07,2.3913379]
[1771717196858,0.95334273,626.83,626.07,2.3913379]
[1771717197151,0.95334273,626.82,626.06,2.3913379]
[1771717197452,0.95334273,626.81,626.06,2.3913379]
[1771717197653,0.95334273,626.8,626.06,2.3913379]
[1771717197853,0.95334273,626.79,626.06,2.3913379]
[1771717198060,0.95334273,626.78,626.06,2.3913379]
[1771717198360,0.95334273,626.77,626.06,2.3913379]
[1771717198660,0.95334273,626.76,626.06,2.3913379]
[1771717198856,0.95334273,626.75,626.06,2.3913379]
[1771717199060,0.95334273,626.74,626.06,2.3913379]
[1771717199255,0.95334273,626.73,626.06,2.3913379]
[1771717199457,0.95334273,626.72,626.06,2.3913379]
[1771717199660,0.95334273,626.71,626.06,2.3913379]
[1771717199960,0.95334273,626.7,626.06,2.3913379]
[1771717200160,0.95334273,626.69,626.06,2.3913379]
[1771717200358,0.95334273,626.68,626.05,2.3913379]
[1771717200562,0.95334273,626.67,626.05,2.3913379]
[1771717200862,1.19719315,626.87,626.05,2.3913379]
[1771717201062,0.95062189,626.86,626.05,2.3913379]
[1771717201262,0.95062189,626.85,626.05,2.3913379]
[1771717201559,0.95062189,626.84,626.05,2.3913379]
[1771717201860,1.19719315,626.79,625.97,2.3913379]
[1771717202060,0.95062189,626.78,625.97,2.3913379]
[1771717206366,0.95062189,626.77,625.97,2.3913379]
[1771717206667,1.19719315,626.71,625.96,1.428]
[1771717206867,0.95062189,626.7,625.96,1.428]
[1771717209569,0.95062189,626.69,625.96,1.428]
[1771717209770,0.95062189,626.68,625.96,1.428]
[1771717209973,0.95062189,626.67,625.96,1.428]
[1771717210173,0.95062189,626.66,625.96,1.428]
[1771717210373,0.95062189,626.65,625.96,1.428]
[1771717210574,0.95062189,626.64,625.96,1.428]
[1771717210772,0.95062189,626.63,625.96,1.428]
[1771717210972,0.95062189,626.62,625.96,1.428]
[1771717211173,0.95062189,626.61,625.96,1.428]
[1771717211373,0.95062189,626.6,625.96,1.428]
[1771717211573,0.95062189,626.59,625.96,1.428]
[1771717211769,0.95062189,626.58,625.96,1.428]
[1771717212071,0.95062189,626.57,625.96,1.428]
[1771717212271,0.95062189,626.56,625.96,1.428]
[1771717212470,0.95062189,626.55,625.96,1.428]
[1771717212673,0.95062189,626.54,625.96,1.428]
[1771717212869,1.19719315,626.7,625.96,1.428]
[1771717212870,0.95062189,626.53,625.96,1.428]
[1771717213068,0.95062189,626.52,625.96,1.428]
[1771717213268,0.95062189,626.51,625.96,1.428]
[1771717213473,0.95062189,626.5,625.96,1.428]
[1771717213674,1.19719315,626.7,625.96,1.428]
[1771717213874,0.95005976,626.69,625.96,1.428]
[1771717214073,0.95005976,626.68,625.96,1.428]
[1771717214374,0.95005976,626.67,625.96,1.428]
[1771717214672,0.95005976,626.66,625.96,1.428]
[1771717214869,1.19719315,626.7,625.96,1.428]
[1771717214870,0.95005976,626.65,625.96,1.428]
[1771717215074,0.95005976,626.64,625.96,1.428]
[1771717215272,0.95005976,626.63,625.96,1.428]
[1771717215470,0.95005976,626.62,625.96,1.428]
[1771717215675,0.95005976,626.61,625.96,1.428]
[1771717215975,0.95005976,626.6,625.96,1.428]
[1771717216174,0.95005976,626.59,625.96,1.428]
[1771717216374,1.19719315,626.71,625.96,1.428]
[1771717216375,0.95005976,626.58,625.96,1.428]
[1771717216574,0.95005976,626.57,625.96,1.428]
[1771717216775,0.95005976,626.56,625.96,1.428]
[1771717216972,0.95005976,626.55,625.96,1.428]
[1771717217278,0.95005976,626.54,625.96,1.428]
[1771717217576,0.95005976,626.53,625.96,1.428]
[1771717217778,0.95005976,626.52,625.96,1.428]
[1771717218074,0.95005976,626.51,625.96,1.428]
[1771717218373,1.19719315,626.71,625.96,1.428]
[1771717218574,0.94953279,626.7,625.84,0.2777933]
[1771717218778,0.94953279,626.69,625.84,0.2777933]
[1771717218976,0.94953279,626.68,625.84,0.2777933]
[1771717219178,0.94953279,626.67,625.84,0.2777933]
[1771717219376,0.94953279,626.66,625.84,0.2777933]
[1771717219578,0.94953279,626.65,625.84,0.2777933]
[1771717219778,0.94953279,626.64,625.84,0.2777933]
[1771717219976,0.94953279,626.63,625.84,0.2777933]
[1771717220180,0.94953279,626.62,625.84,0.2777933]
[1771717220477,0.94953279,626.61,625.84,0.2777933]
[1771717220780,0.94953279,626.6,625.84,0.2777933]
[1771717220977,0.94953279,626.59,625.84,0.2777933]
[1771717221180,0.94953279,626.58,625.84,0.2777933]
[1771717221381,0.94953279,626.57,625.84,0.2777933]
[1771717221579,0.94953279,626.56,625.84,0.2777933]
[1771717221878,0.94953279,626.55,625.84,0.2777933]
[1771717222078,0.94953279,626.54,625.84,0.2777933]
[1771717222279,0.94953279,626.53,625.85,1.833]
[1771717222480,0.94953279,626.52,625.85,1.833]
[1771717222685,1.19719315,626.72,625.85,1.833]
[1771717222883,0.94925003,626.71,625.85,1.833]
[1771717223185,0.94925003,626.7,625.85,1.833]
[1771717223384,0.94925003,626.69,625.85,1.833]
[1771717223582,0.94925003,626.68,625.85,1.833]
[1771717223787,0.94925003,626.67,625.85,1.833]
[1771717223986,0.94925003,626.66,625.85,1.833]
[1771717224282,0.94925003,626.65,625.85,1.833]
[1771717224486,0.94925003,626.64,625.85,1.833]
[1771717224685,0.94925003,626.63,625.85,1.833]
[1771717224982,0.94925003,626.62,625.85,1.833]
[1771717225285,0.94925003,626.61,625.85,1.833]
[1771717225483,0.94925003,626.6,625.85,1.833]
[1771717225685,0.94925003,626.59,625.85,1.833]
[1771717225987,0.94925003,626.58,625.85,1.833]
[1771717226183,0.94925003,626.57,625.85,1.833]
[1771717226484,0.94925003,626.56,625.85,1.833]
[1771717226685,0.94925003,626.55,625.85,1.833]
[1771717226983,0.94925003,626.54,625.85,1.833]
[1771717227281,0.94925003,626.53,625.85,1.833]
[1771717227585,1.19719315,626.73,625.85,1.833]
[1771717227783,0.94902491,626.72,625.85,1.833]
[1771717227983,0.94902491,626.71,625.85,1.833]
[1771717228187,0.94902491,626.7,625.85,1.833]
[1771717228387,0.94902491,626.69,625.85,1.833]
[1771717228585,0.94902491,626.68,625.85,1.833]
[1771717228785,0.94902491,626.67,625.85,1.833]
[1771717228988,0.94902491,626.66,625.85,1.833]
[1771717229190,0.27772014,627.37,625.85,1.833]
[1771717229191,0.94902491,626.65,625.85,1.833]
[1771717229388,0.94902491,626.64,625.85,1.833]
[1771717229589,0.94902491,626.63,625.85,1.833]
[1771717229886,0.94902491,626.62,625.85,1.833]
[1771717230086,0.94902491,626.61,625.85,1.833]
[1771717230285,0.94902491,626.6,625.85,1.833]
[1771717230484,0.94902491,626.59,625.85,1.833]
[1771717230717,0.94902491,626.58,625.85,1.833]
[1771717230990,0.94902491,626.57,625.85,1.833]
[1771717231191,0.94902491,626.56,625.85,1.833]
[1771717231490,0.94902491,626.55,625.85,1.833]
[1771717231790,0.94902491,626.54,625.85,1.833]
[1771717231988,0.94902491,626.53,625.85,1.833]
[1771717232189,0.94902491,626.52,625.85,1.833]
[1771717232389,0.94902491,626.51,625.85,1.833]
[1771717232590,1.19719315,626.71,625.85,1.833]
[1771717232791,0.94930779,626.7,625.85,1.833]
[1771717232985,0.94930779,626.69,625.85,1.833]
[1771717233187,0.94930779,626.68,625.85,1.833]
[1771717233390,0.94930779,626.67,625.85,1.833]
[1771717233690,0.94930779,626.66,625.85,1.833]
[1771717233889,0.94930779,626.65,625.85,1.833]
[1771717234187,0.94930779,626.64,625.85,1.833]
[1771717234391,0.94930779,626.63,625.85,1.833]
[1771717234591,0.94930779,626.62,625.85,1.833]
[1771717234792,0.94930779,626.61,625.85,1.833]
[1771717234988,0.94930779,626.6,625.85,1.833]
[1771717235191,0.94930779,626.59,625.85,1.833]
[1771717235390,0.94930779,626.58,625.85,1.833]
[1771717235589,0.94930779,626.57,625.85,1.833]
[1771717235790,0.94930779,626.56,625.85,1.833]
[1771717235993,0.94930779,626.55,625.85,1.833]
[1771717236194,0.94930779,626.54,625.85,1.833]
[1771717236391,0.94930779,626.53,625.85,1.833]
[1771717236594,0.94930779,626.52,625.85,1.833]
[1771717236792,0.94930779,626.51,625.85,1.833]
[1771717236992,1.19719315,626.71,625.85,1.833]
[1771717237195,0.9492147,626.7,625.85,1.833]
[1771717237395,0.9492147,626.69,625.85,1.833]
[1771717237692,0.9492147,626.68,625.85,1.833]
[1771717237892,0.9492147,626.67,625.85,1.833]
[1771717238091,0.9492147,626.66,625.85,1.833]
[1771717238293,0.9492147,626.65,625.85,1.833]
[1771717238497,0.9492147,626.64,625.85,1.833]
[1771717238697,0.9492147,626.63,625.85,1.833]
[1771717238895,0.9492147,626.62,625.85,1.833]
[1771717239098,0.9492147,626.61,625.85,1.833]
[1771717239295,0.9492147,626.6,625.85,1.833]
[1771717239595,0.9492147,626.59,625.85,1.833]
[1771717239898,0.9492147,626.58,625.85,1.833]
[1771717240097,0.9492147,626.57,625.85,1.833]
[1771717240296,0.9492147,626.56,625.85,1.833]
[1771717240496,0.9492147,626.55,625.85,1.833]
[1771717240696,0.9492147,626.54,625.85,1.833]
[1771717240902,0.9492147,626.53,625.85,1.833]
[1771717241197,0.9492147,626.52,625.85,1.833]
[1771717241401,0.9492147,626.51,625.85,1.833]
[1771717241597,0.9492147,626.5,625.85,1.833]
[1771717241797,0.9492147,626.49,625.85,1.833]
[1771717242102,0.9492147,626.48,625.85,1.833]
[1771717242298,0.9492147,626.47,625.85,1.833]
[1771717242498,0.9492147,626.46,625.85,1.833]
[1771717242703,1.19719315,626.66,625.85,1.833]
[1771717242902,0.94994486,626.65,625.85,1.833]
[1771717243104,0.94994486,626.64,625.85,1.833]
[1771717243300,0.94994486,626.63,625.85,1.833]
[1771717243503,0.94994486,626.62,625.85,1.833]
[1771717243703,0.94994486,626.61,625.85,1.833]
[1771717243904,0.94994486,626.6,625.85,1.833]
[1771717244104,0.94994486,626.59,625.85,1.833]
[1771717244304,0.94994486,626.58,625.85,1.833]
[1771717244601,0.94994486,626.57,625.85,1.833]
[1771717244803,0.94994486,626.56,625.85,1.833]
[1771717245000,0.94994486,626.55,625.85,1.833]
[1771717245201,0.94994486,626.54,625.85,1.833]
[1771717245400,0.94994486,626.53,625.85,1.833]
[1771717245704,0.94994486,626.52,625.85,1.833]
[1771717245907,0.94994486,626.51,625.85,1.833]
[1771717246102,0.94994486,626.5,625.85,1.833]
[1771717246306,0.94994486,626.49,625.85,1.833]
[1771717246600,0.94994486,626.48,625.85,1.833]
[1771717246805,0.94994486,626.47,625.85,1.833]
[1771717247004,0.94994486,626.46,625.85,1.833]
[1771717247204,0.94994486,626.45,625.85,1.833]
[1771717247505,0.94994486,626.44,625.85,1.833]
[1771717247706,0.94994486,626.43,625.85,1.833]
[1771717248007,0.94994486,626.42,625.85,1.833]
[1771717248206,0.94994486,626.41,625.85,1.833]
[1771717248401,0.94994486,626.4,625.85,1.833]
[1771717248605,0.94994486,626.39,625.85,1.833]
[1771717248806,0.94994486,626.38,625.85,1.833]
[1771717249003,0.94994486,626.37,625.85,1.833]
[1771717249203,1.19719315,626.57,625.85,1.833]
[1771717249507,0.95108957,626.56,625.85,1.833]
[1771717249706,0.95108957,626.55,625.85,1.833]
[1771717249904,0.95108957,626.54,625.85,1.833]
[1771717250103,0.95108957,626.53,625.85,1.833]
[1771717250305,0.95108957,626.52,625.85,1.833]
[1771717250509,0.95108957,626.51,625.85,1.833]
[1771717250710,0.95108957,626.5,625.85,1.833]
[1771717250905,0.95108957,626.49,625.85,1.833]
[1771717251209,0.95108957,626.48,625.85,1.833]
[1771717251409,0.95108957,626.47,625.85,1.833]
[1771717251606,0.95108957,626.46,625.85,1.833]
[1771717251806,0.95108957,626.45,625.85,1.833]
[1771717252005,0.95108957,626.44,625.85,1.833]
[1771717252305,0.95108957,626.43,625.85,1.833]
[1771717252507,0.95108957,626.42,625.85,1.833]
[1771717252706,0.95108957,626.41,625.85,1.833]
[1771717252906,0.95108957,626.4,625.85,1.833]
[1771717253108,0.95108957,626.39,625.85,1.833]
[1771717253306,0.95108957,626.38,625.85,1.833]
[1771717253506,0.95108957,626.37,625.85,1.833]
[1771717253705,0.95108957,626.36,625.85,1.833]
[1771717254010,1.19719315,626.56,625.85,1.833]
[1771717254209,0.95115067,626.55,625.85,1.833]
[1771717254407,0.95115067,626.54,625.85,1.833]
[1771717254610,0.95115067,626.53,625.85,1.833]
[1771717254809,0.95115067,626.52,625.85,1.833]
[1771717255009,1.90224057,626.51,625.85,1.833]
[1771717255209,0.9510899,626.5,625.85,1.833]
[1771717255406,1.58501967,626.67,625.85,1.833]
[1771717255407,0.9510899,626.49,625.85,1.833]
[1771717255609,0.9510899,626.48,625.85,1.833]
[1771717255810,0.9510899,626.47,625.85,1.833]